[Event "Titled Tuesday Blitz August 23 Late 2022"]
[White "Fishbein, Alexander"]
[Black "Kamsky, Gata"]
[WhiteFideId "2000377"]
[BlackFideId "2000024"]
[WhiteElo "2410"]
[BlackElo "2666"]
[Result "1/2-1/2"]
[Round "10"]
[TimeControl "180+1"]
[Date "2022.08.23"]
[WhiteClock "0:00:06"]
[BlackClock "0:00:24"]

1. e4 {[%clk 0:02:25]}  c5 {[%clk 0:02:56]} 2. Nf3 {[%clk 0:02:24]}  Nc6 {[%clk 0:02:55]} 3. d4 {[%clk 0:02:23]}  cxd4 {[%clk 0:02:56]} 4. Nxd4 {[%clk 0:02:23]}  Nf6 {[%clk 0:02:56]} 5. Nc3 {[%clk 0:02:22]}  Qb6 {[%clk 0:02:56]} 6. Be3 {[%clk 0:02:13]}  Qxb2 {[%clk 0:02:31]} 7. Ndb5 {[%clk 0:02:10]}  Qb4 {[%clk 0:02:28]} 8. Bd2 {[%clk 0:01:57]}  Nxe4 {[%clk 0:02:25]} 9. a3 {[%clk 0:01:33]}  Nxc3 {[%clk 0:02:23]} 10. axb4 {[%clk 0:01:27]}  Nxd1 {[%clk 0:02:19]} 11. Nc7+ {[%clk 0:01:27]}  Kd8 {[%clk 0:02:19]} 12. Nxa8 {[%clk 0:01:28]}  Nb2 {[%clk 0:02:08]} 13. Bc3 {[%clk 0:01:23]}  e5 {[%clk 0:01:56]} 14. Bxb2 {[%clk 0:01:21]}  Bxb4+ {[%clk 0:01:55]} 15. c3 {[%clk 0:01:20]}  Bc5 {[%clk 0:01:55]} 16. Ba3 {[%clk 0:01:18]}  Bxa3 {[%clk 0:01:46]} 17. Rxa3 {[%clk 0:01:18]}  b6 {[%clk 0:01:46]} 18. Bb5 {[%clk 0:01:13]}  Na5 {[%clk 0:01:47]} 19. O-O {[%clk 0:01:07]}  Bb7 {[%clk 0:01:46]} 20. Rd1 {[%clk 0:01:04]}  d5 {[%clk 0:01:46]} 21. Nxb6 {[%clk 0:00:56]}  axb6 {[%clk 0:01:46]} 22. c4 {[%clk 0:00:55]}  Kc7 {[%clk 0:01:18]} 23. cxd5 {[%clk 0:00:54]}  Kd6 {[%clk 0:01:18]} 24. Bf1 {[%clk 0:00:38]}  Rb8 {[%clk 0:01:15]} 25. Rg3 {[%clk 0:00:34]}  g6 {[%clk 0:01:14]} 26. Rh3 {[%clk 0:00:33]}  h5 {[%clk 0:00:48]} 27. Rf3 {[%clk 0:00:33]}  f5 {[%clk 0:00:41]} 28. Rg3 {[%clk 0:00:33]}  Rg8 {[%clk 0:00:41]} 29. Rb1 {[%clk 0:00:32]}  Bxd5 {[%clk 0:00:40]} 30. Rxb6+ {[%clk 0:00:31]}  Nc6 {[%clk 0:00:41]} 31. Bb5 {[%clk 0:00:20]}  Kc5 {[%clk 0:00:39]} 32. Bxc6 {[%clk 0:00:20]}  Bxc6 {[%clk 0:00:37]} 33. Rb1 {[%clk 0:00:19]}  Be4 {[%clk 0:00:29]} 34. Rc1+ {[%clk 0:00:17]}  Kd6 {[%clk 0:00:27]} 35. f3 {[%clk 0:00:16]}  f4 {[%clk 0:00:26]} 36. Rg5 {[%clk 0:00:13]}  Bf5 {[%clk 0:00:26]} 37. g4 {[%clk 0:00:11]}  fxg3 {[%clk 0:00:25]} 38. hxg3 {[%clk 0:00:11]}  Ke7 {[%clk 0:00:24]} 39. f4 {[%clk 0:00:09]}  exf4 {[%clk 0:00:24]} 40. gxf4 {[%clk 0:00:09]}  Rd8 {[%clk 0:00:24]} 41. Rg2 {[%clk 0:00:06]} 1/2-1/2


[Site "https://www.chess.com"]

[Event "Titled Tuesday Blitz August 23 Late 2022"]
[White "Guz, Ari"]
[Black "Seo, Jung Min"]
[WhiteFideId "2825759"]
[BlackFideId "1734687"]
[WhiteElo "1913"]
[BlackElo "2414"]
[Result "0-1"]
[Round "10"]
[TimeControl "180+1"]
[Date "2022.08.23"]
[WhiteClock "0:00:22"]
[BlackClock "0:00:59"]

1. e4 {[%clk 0:03:00]}  e5 {[%clk 0:02:58]} 2. Nf3 {[%clk 0:03:00]}  d6 {[%clk 0:02:59]} 3. d4 {[%clk 0:03:00]}  exd4 {[%clk 0:02:59]} 4. Nxd4 {[%clk 0:03:00]}  Nf6 {[%clk 0:02:59]} 5. Nc3 {[%clk 0:03:00]}  Be7 {[%clk 0:02:57]} 6. g3 {[%clk 0:03:00]}  Kf8 {[%clk 0:02:57]} 7. Bg2 {[%clk 0:02:59]}  h5 {[%clk 0:02:55]} 8. h4 {[%clk 0:02:59]}  Bg4 {[%clk 0:02:53]} 9. f3 {[%clk 0:02:59]}  Bd7 {[%clk 0:02:53]} 10. O-O {[%clk 0:02:58]}  g6 {[%clk 0:02:53]} 11. f4 {[%clk 0:02:56]}  Nc6 {[%clk 0:02:51]} 12. f5 {[%clk 0:02:56]}  Kg7 {[%clk 0:02:48]} 13. fxg6 {[%clk 0:02:51]}  fxg6 {[%clk 0:02:48]} 14. Nd5 {[%clk 0:02:51]}  Nxd5 {[%clk 0:02:43]} 15. exd5 {[%clk 0:02:50]}  Nxd4 {[%clk 0:02:43]} 16. Qxd4+ {[%clk 0:02:51]}  Bf6 {[%clk 0:02:43]} 17. Qc4 {[%clk 0:02:45]}  Re8 {[%clk 0:02:38]} 18. Bd2 {[%clk 0:02:42]}  b5 {[%clk 0:02:35]} 19. Qd3 {[%clk 0:02:40]}  Bxb2 {[%clk 0:02:32]} 20. Bg5 {[%clk 0:02:25]}  Qb8 {[%clk 0:02:24]} 21. Rab1 {[%clk 0:01:50]}  Qb6+ {[%clk 0:02:22]} 22. Kh2 {[%clk 0:01:47]}  Be5 {[%clk 0:02:22]} 23. Rbe1 {[%clk 0:01:47]}  Qd4 {[%clk 0:02:20]} 24. Qb3 {[%clk 0:01:35]}  Rf8 {[%clk 0:02:11]} 25. Re4 {[%clk 0:01:33]}  Qc5 {[%clk 0:02:02]} 26. Rxf8 {[%clk 0:01:03]}  Rxf8 {[%clk 0:02:00]} 27. Be7 {[%clk 0:01:03]}  Rf5 {[%clk 0:01:55]} 28. Bg5 {[%clk 0:00:50]}  Qc3 {[%clk 0:01:40]} 29. Qxc3 {[%clk 0:00:42]}  Bxc3 {[%clk 0:01:40]} 30. Bh3 {[%clk 0:00:42]}  Rf7 {[%clk 0:01:33]} 31. Be6 {[%clk 0:00:42]}  Bxe6 {[%clk 0:01:26]} 32. dxe6 {[%clk 0:00:43]}  Rf8 {[%clk 0:01:26]} 33. e7 {[%clk 0:00:43]}  Re8 {[%clk 0:01:23]} 34. Rf4 {[%clk 0:00:43]}  Kg8 {[%clk 0:01:15]} 35. Kg2 {[%clk 0:00:33]}  Be5 {[%clk 0:01:12]} 36. Rb4 {[%clk 0:00:32]}  a6 {[%clk 0:01:11]} 37. Kf3 {[%clk 0:00:30]}  Kf7 {[%clk 0:01:10]} 38. Ke4 {[%clk 0:00:27]}  Bf6 {[%clk 0:01:10]} 39. Bxf6 {[%clk 0:00:23]}  Kxf6 {[%clk 0:01:10]} 40. a4 {[%clk 0:00:24]}  Rxe7+ {[%clk 0:01:09]} 41. Kd5 {[%clk 0:00:25]}  Re5+ {[%clk 0:01:09]} 42. Kc6 {[%clk 0:00:25]}  Rc5+ {[%clk 0:01:08]} 43. Kd7 {[%clk 0:00:26]}  bxa4 {[%clk 0:01:08]} 44. c4 {[%clk 0:00:25]}  a3 {[%clk 0:01:07]} 45. Ra4 {[%clk 0:00:24]}  Kf5 {[%clk 0:01:06]} 46. Rxa6 {[%clk 0:00:23]}  Rxc4 {[%clk 0:01:05]} 47. Rxa3 {[%clk 0:00:24]}  Kg4 {[%clk 0:01:05]} 48. Ke6 {[%clk 0:00:24]}  g5 {[%clk 0:01:01]} 49. hxg5 {[%clk 0:00:22]}  Kxg5 {[%clk 0:01:01]} 50. Kf7 {[%clk 0:00:23]}  Kg4 {[%clk 0:01:00]} 51. Kg6 {[%clk 0:00:23]}  d5 {[%clk 0:01:00]} 52. Kf6 {[%clk 0:00:20]}  d4 {[%clk 0:00:59]} 53. Ke5 {[%clk 0:00:20]}  c5 {[%clk 0:00:59]} 54. Kd5 {[%clk 0:00:19]}  Rc3 {[%clk 0:00:59]} 55. Ra6 {[%clk 0:00:20]}  Kxg3 {[%clk 0:00:59]} 56. Rh6 {[%clk 0:00:21]}  h4 {[%clk 0:00:58]} 57. Rg6+ {[%clk 0:00:22]}  Kh2 {[%clk 0:00:59]} 0-1


[Site "https://www.chess.com"]

[Event "Titled Tuesday Blitz August 23 Late 2022"]
[White "Hjartarson, Johann"]
[Black "Harvey, Marcus R"]
[WhiteFideId "2300044"]
[BlackFideId "400092"]
[WhiteElo "2458"]
[BlackElo "2485"]
[Result "1-0"]
[Round "10"]
[TimeControl "180+1"]
[Date "2022.08.23"]
[WhiteClock "0:00:08"]
[BlackClock "0:00:05"]

1. c4 {[%clk 0:03:00]}  e5 {[%clk 0:02:59]} 2. g3 {[%clk 0:02:59]}  g6 {[%clk 0:02:59]} 3. Bg2 {[%clk 0:02:59]}  Bg7 {[%clk 0:02:59]} 4. Nc3 {[%clk 0:02:59]}  Ne7 {[%clk 0:02:59]} 5. Nf3 {[%clk 0:02:56]}  O-O {[%clk 0:02:58]} 6. d3 {[%clk 0:02:56]}  c6 {[%clk 0:02:57]} 7. h4 {[%clk 0:02:55]}  h6 {[%clk 0:02:55]} 8. e4 {[%clk 0:02:50]}  d5 {[%clk 0:02:54]} 9. h5 {[%clk 0:02:47]}  dxe4 {[%clk 0:02:46]} 10. dxe4 {[%clk 0:02:43]}  g5 {[%clk 0:02:37]} 11. Qxd8 {[%clk 0:02:41]}  Rxd8 {[%clk 0:02:36]} 12. b3 {[%clk 0:02:35]}  Na6 {[%clk 0:02:34]} 13. Ba3 {[%clk 0:02:34]}  Kf8 {[%clk 0:02:27]} 14. Nh2 {[%clk 0:02:12]}  Ke8 {[%clk 0:02:12]} 15. Ke2 {[%clk 0:02:11]}  Ng8 {[%clk 0:02:09]} 16. Rad1 {[%clk 0:02:06]}  Rxd1 {[%clk 0:02:06]} 17. Nxd1 {[%clk 0:02:01]}  Nf6 {[%clk 0:02:03]} 18. Ne3 {[%clk 0:02:01]}  Nc7 {[%clk 0:01:44]} 19. Bf3 {[%clk 0:01:56]}  Ne6 {[%clk 0:01:43]} 20. Nf5 {[%clk 0:01:55]}  Nd4+ {[%clk 0:01:33]} 21. Nxd4 {[%clk 0:01:54]}  exd4 {[%clk 0:01:34]} 22. Rd1 {[%clk 0:01:42]}  g4 {[%clk 0:01:30]} 23. Bg2 {[%clk 0:01:38]}  Nxh5 {[%clk 0:01:22]} 24. Bc5 {[%clk 0:01:36]}  Be6 {[%clk 0:01:15]} 25. Bxd4 {[%clk 0:01:35]}  Bxd4 {[%clk 0:01:13]} 26. Rxd4 {[%clk 0:01:34]}  c5 {[%clk 0:01:14]} 27. Rd2 {[%clk 0:01:31]}  Rd8 {[%clk 0:00:51]} 28. e5 {[%clk 0:01:24]}  Rxd2+ {[%clk 0:00:49]} 29. Kxd2 {[%clk 0:01:24]}  b6 {[%clk 0:00:49]} 30. Nf1 {[%clk 0:01:18]}  Ke7 {[%clk 0:00:39]} 31. Ne3 {[%clk 0:01:17]}  f5 {[%clk 0:00:37]} 32. Nd5+ {[%clk 0:01:10]}  Kd7 {[%clk 0:00:31]} 33. Ke3 {[%clk 0:01:09]}  Bf7 {[%clk 0:00:23]} 34. Bf1 {[%clk 0:01:02]}  Ke6 {[%clk 0:00:21]} 35. Bd3 {[%clk 0:00:48]}  Kxe5 {[%clk 0:00:21]} 36. Ne7 {[%clk 0:00:48]}  Be8 {[%clk 0:00:07]} 37. Nxf5 {[%clk 0:00:45]}  Bd7 {[%clk 0:00:05]} 38. Nxh6 {[%clk 0:00:43]}  Kf6 {[%clk 0:00:05]} 39. Be2 {[%clk 0:00:37]}  Kg5 {[%clk 0:00:03]} 40. Nf7+ {[%clk 0:00:33]}  Kf6 {[%clk 0:00:03]} 41. Nd6 {[%clk 0:00:33]}  Ke5 {[%clk 0:00:03]} 42. Nb5 {[%clk 0:00:27]}  Bxb5 {[%clk 0:00:02]} 43. cxb5 {[%clk 0:00:27]}  Nf6 {[%clk 0:00:03]} 44. Kd3 {[%clk 0:00:24]}  Ne4 {[%clk 0:00:03]} 45. Ke3 {[%clk 0:00:22]}  Nc3 {[%clk 0:00:03]} 46. a4 {[%clk 0:00:20]}  Nd5+ {[%clk 0:00:02]} 47. Kd2 {[%clk 0:00:19]}  Nf6 {[%clk 0:00:02]} 48. Bd3 {[%clk 0:00:18]}  Kd4 {[%clk 0:00:02]} 49. Bf5 {[%clk 0:00:18]}  c4 {[%clk 0:00:03]} 50. bxc4 {[%clk 0:00:16]}  Kxc4 {[%clk 0:00:04]} 51. Ke3 {[%clk 0:00:15]}  Kb4 {[%clk 0:00:04]} 52. Kd4 {[%clk 0:00:15]}  Kxa4 {[%clk 0:00:05]} 53. Ke5 {[%clk 0:00:15]}  Ng8 {[%clk 0:00:04]} 54. Bxg4 {[%clk 0:00:15]}  Kxb5 {[%clk 0:00:04]} 55. Be6 {[%clk 0:00:12]}  Ne7 {[%clk 0:00:04]} 56. f4 {[%clk 0:00:11]}  a5 {[%clk 0:00:02]} 57. f5 {[%clk 0:00:11]}  a4 {[%clk 0:00:02]} 58. f6 {[%clk 0:00:11]}  Ng6+ {[%clk 0:00:03]} 59. Kf5 {[%clk 0:00:11]}  Nf8 {[%clk 0:00:03]} 60. Bf7 {[%clk 0:00:10]}  Kc5 {[%clk 0:00:02]} 61. g4 {[%clk 0:00:10]}  b5 {[%clk 0:00:03]} 62. g5 {[%clk 0:00:10]}  b4 {[%clk 0:00:03]} 63. g6 {[%clk 0:00:10]}  Nxg6 {[%clk 0:00:03]} 64. Kxg6 {[%clk 0:00:10]}  b3 {[%clk 0:00:04]} 65. Kg7 {[%clk 0:00:10]}  Kb4 {[%clk 0:00:03]} 66. Be6 {[%clk 0:00:09]}  a3 {[%clk 0:00:04]} 67. f7 {[%clk 0:00:08]}  a2 {[%clk 0:00:04]} 68. f8=Q+ {[%clk 0:00:08]}  Kc3 {[%clk 0:00:05]} 69. Qf3+ {[%clk 0:00:08]}  Kb2 {[%clk 0:00:05]} 70. Qxb3+ {[%clk 0:00:08]} 1-0


[Site "https://www.chess.com"]

[Event "Titled Tuesday Blitz August 23 Late 2022"]
[White "Howell, David W L"]
[Black "Naroditsky, Daniel"]
[WhiteFideId "410608"]
[BlackFideId "2026961"]
[WhiteElo "2559"]
[BlackElo "2628"]
[Result "1/2-1/2"]
[Round "10"]
[TimeControl "180+1"]
[Date "2022.08.23"]
[WhiteClock "0:00:11"]
[BlackClock "0:00:07"]

1. e4 {[%clk 0:02:56]}  e5 {[%clk 0:02:59]} 2. Nf3 {[%clk 0:02:54]}  Nc6 {[%clk 0:02:59]} 3. Nc3 {[%clk 0:02:54]}  Nf6 {[%clk 0:02:59]} 4. Bb5 {[%clk 0:02:53]}  Nd4 {[%clk 0:02:58]} 5. Nxd4 {[%clk 0:02:42]}  exd4 {[%clk 0:02:58]} 6. e5 {[%clk 0:02:43]}  dxc3 {[%clk 0:02:58]} 7. exf6 {[%clk 0:02:43]}  Qxf6 {[%clk 0:02:55]} 8. dxc3 {[%clk 0:02:43]}  Bc5 {[%clk 0:02:34]} 9. Qe2+ {[%clk 0:02:31]}  Qe6 {[%clk 0:02:23]} 10. Bf4 {[%clk 0:02:28]}  c6 {[%clk 0:02:18]} 11. Qxe6+ {[%clk 0:02:10]}  fxe6 {[%clk 0:02:17]} 12. Bd3 {[%clk 0:02:10]}  O-O {[%clk 0:02:16]} 13. Bg3 {[%clk 0:02:09]}  a5 {[%clk 0:02:06]} 14. f3 {[%clk 0:01:52]}  d6 {[%clk 0:02:04]} 15. Bf2 {[%clk 0:01:39]}  Bxf2+ {[%clk 0:02:04]} 16. Kxf2 {[%clk 0:01:40]}  e5 {[%clk 0:02:02]} 17. Rad1 {[%clk 0:01:32]}  Be6 {[%clk 0:02:01]} 18. c4 {[%clk 0:01:28]}  Rf4 {[%clk 0:01:29]} 19. b3 {[%clk 0:01:22]}  a4 {[%clk 0:01:13]} 20. Rhe1 {[%clk 0:01:20]}  Bf7 {[%clk 0:00:37]} 21. c5 {[%clk 0:01:05]}  dxc5 {[%clk 0:00:35]} 22. Rxe5 {[%clk 0:01:06]}  axb3 {[%clk 0:00:27]} 23. axb3 {[%clk 0:01:05]}  c4 {[%clk 0:00:14]} 24. bxc4 {[%clk 0:01:04]}  Bxc4 {[%clk 0:00:08]} 25. Re7 {[%clk 0:01:01]}  Bxd3 {[%clk 0:00:04]} 26. Rxd3 {[%clk 0:01:02]}  Rf7 {[%clk 0:00:05]} 27. Rxf7 {[%clk 0:00:52]}  Kxf7 {[%clk 0:00:06]} 28. Rd7+ {[%clk 0:00:52]}  Kf6 {[%clk 0:00:07]} 29. Rxb7 {[%clk 0:00:52]}  Ra2 {[%clk 0:00:07]} 30. g4 {[%clk 0:00:52]}  Rxc2+ {[%clk 0:00:08]} 31. Kg3 {[%clk 0:00:52]}  h6 {[%clk 0:00:09]} 32. h4 {[%clk 0:00:52]}  Rc1 {[%clk 0:00:09]} 33. h5 {[%clk 0:00:50]}  Rc4 {[%clk 0:00:09]} 34. Rc7 {[%clk 0:00:49]}  Rc1 {[%clk 0:00:09]} 35. Kf4 {[%clk 0:00:48]}  Rc4+ {[%clk 0:00:09]} 36. Ke3 {[%clk 0:00:49]}  Rc3+ {[%clk 0:00:10]} 37. Ke4 {[%clk 0:00:48]}  Rc4+ {[%clk 0:00:10]} 38. Kd3 {[%clk 0:00:49]}  Rc1 {[%clk 0:00:11]} 39. Rc8 {[%clk 0:00:48]}  Kf7 {[%clk 0:00:07]} 40. Kd2 {[%clk 0:00:41]}  Rc5 {[%clk 0:00:06]} 41. Ke3 {[%clk 0:00:42]}  Rc1 {[%clk 0:00:06]} 42. Kd4 {[%clk 0:00:37]}  Kf6 {[%clk 0:00:03]} 43. Rg8 {[%clk 0:00:35]}  Kf7 {[%clk 0:00:03]} 44. Rc8 {[%clk 0:00:34]}  Kf6 {[%clk 0:00:04]} 45. Rc7 {[%clk 0:00:28]}  Rd1+ {[%clk 0:00:03]} 46. Ke3 {[%clk 0:00:27]}  Rc1 {[%clk 0:00:03]} 47. Ra7 {[%clk 0:00:26]}  Rc3+ {[%clk 0:00:03]} 48. Ke4 {[%clk 0:00:26]}  Rc4+ {[%clk 0:00:03]} 49. Kd3 {[%clk 0:00:27]}  Rc1 {[%clk 0:00:04]} 50. Ra5 {[%clk 0:00:26]}  Kf7 {[%clk 0:00:03]} 51. Ke4 {[%clk 0:00:20]}  Rc3 {[%clk 0:00:03]} 52. Ra8 {[%clk 0:00:17]}  Rb3 {[%clk 0:00:03]} 53. Rc8 {[%clk 0:00:13]}  Rb4+ {[%clk 0:00:02]} 54. Ke5 {[%clk 0:00:12]}  Rb5+ {[%clk 0:00:03]} 55. Kd4 {[%clk 0:00:09]}  Rb3 {[%clk 0:00:04]} 56. Ke4 {[%clk 0:00:09]}  Rc3 {[%clk 0:00:05]} 57. f4 {[%clk 0:00:08]}  Rc1 {[%clk 0:00:03]} 58. Rc7+ {[%clk 0:00:07]}  Kf6 {[%clk 0:00:03]} 59. Rc8 {[%clk 0:00:08]}  Rc4+ {[%clk 0:00:04]} 60. Kf3 {[%clk 0:00:08]}  Rc3+ {[%clk 0:00:03]} 61. Ke4 {[%clk 0:00:08]}  Rc4+ {[%clk 0:00:04]} 62. Kf3 {[%clk 0:00:08]}  c5 {[%clk 0:00:05]} 63. Rc6+ {[%clk 0:00:08]}  Kf7 {[%clk 0:00:05]} 64. Rc7+ {[%clk 0:00:09]}  Kf8 {[%clk 0:00:06]} 65. Rc8+ {[%clk 0:00:09]}  Kf7 {[%clk 0:00:06]} 66. Rc7+ {[%clk 0:00:10]}  Kf8 {[%clk 0:00:07]} 67. Rc8+ {[%clk 0:00:10]}  Kf7 {[%clk 0:00:07]} 68. Rc7+ {[%clk 0:00:11]} 1/2-1/2


[Site "https://www.chess.com"]

[Event "Titled Tuesday Blitz August 23 Late 2022"]
[White "Kokoszczynski, Jan"]
[Black "Al-Tarboush, Ward"]
[WhiteFideId "1174460"]
[BlackFideId "7601450"]
[WhiteElo "2147"]
[BlackElo "2234"]
[Result "1-0"]
[Round "10"]
[TimeControl "180+1"]
[Date "2022.08.23"]
[WhiteClock "0:01:21"]
[BlackClock "0:00:01"]

1. d4 {[%clk 0:03:00]}  d5 {[%clk 0:01:57]} 2. Nf3 {[%clk 0:02:57]}  Nf6 {[%clk 0:01:57]} 3. Bf4 {[%clk 0:02:57]}  c5 {[%clk 0:01:56]} 4. e3 {[%clk 0:02:58]}  Nc6 {[%clk 0:01:54]} 5. c3 {[%clk 0:02:58]}  Qb6 {[%clk 0:01:51]} 6. Qc1 {[%clk 0:02:52]}  Bf5 {[%clk 0:01:47]} 7. Nbd2 {[%clk 0:02:51]}  e6 {[%clk 0:01:47]} 8. Be2 {[%clk 0:02:51]}  Be7 {[%clk 0:01:46]} 9. h3 {[%clk 0:02:51]}  O-O {[%clk 0:01:45]} 10. O-O {[%clk 0:02:52]}  h6 {[%clk 0:01:44]} 11. Ne5 {[%clk 0:02:52]}  Nxe5 {[%clk 0:01:44]} 12. Bxe5 {[%clk 0:02:52]}  Rac8 {[%clk 0:01:41]} 13. Re1 {[%clk 0:02:48]}  Nd7 {[%clk 0:01:40]} 14. Bh2 {[%clk 0:02:47]}  Bf6 {[%clk 0:01:40]} 15. Nb3 {[%clk 0:02:45]}  a5 {[%clk 0:01:35]} 16. Nxc5 {[%clk 0:02:37]}  Nxc5 {[%clk 0:01:36]} 17. dxc5 {[%clk 0:02:38]}  Qxc5 {[%clk 0:01:34]} 18. Qd2 {[%clk 0:02:37]}  b5 {[%clk 0:01:32]} 19. Rac1 {[%clk 0:02:35]}  b4 {[%clk 0:01:29]} 20. c4 {[%clk 0:02:24]}  d4 {[%clk 0:01:28]} 21. b3 {[%clk 0:02:18]}  d3 {[%clk 0:00:53]} 22. Bxd3 {[%clk 0:02:09]}  Rfd8 {[%clk 0:00:52]} 23. e4 {[%clk 0:02:09]}  Bg5 {[%clk 0:00:52]} 24. Bf4 {[%clk 0:02:07]}  Rxd3 {[%clk 0:00:20]} 25. Qxd3 {[%clk 0:02:07]}  Bxf4 {[%clk 0:00:20]} 26. exf5 {[%clk 0:02:07]}  Bxc1 {[%clk 0:00:20]} 27. Rxc1 {[%clk 0:01:54]}  Qxf5 {[%clk 0:00:20]} 28. Qxf5 {[%clk 0:01:54]}  exf5 {[%clk 0:00:21]} 29. Rd1 {[%clk 0:01:54]}  a4 {[%clk 0:00:18]} 30. Rd5 {[%clk 0:01:53]}  Re8 {[%clk 0:00:14]} 31. Rb5 {[%clk 0:01:51]}  Re1+ {[%clk 0:00:12]} 32. Kh2 {[%clk 0:01:51]}  Re2 {[%clk 0:00:12]} 33. Rxb4 {[%clk 0:01:49]}  a3 {[%clk 0:00:12]} 34. c5 {[%clk 0:01:48]}  Rxa2 {[%clk 0:00:10]} 35. c6 {[%clk 0:01:35]}  Rc2 {[%clk 0:00:10]} 36. Rc4 {[%clk 0:01:35]}  Rxc4 {[%clk 0:00:10]} 37. bxc4 {[%clk 0:01:36]}  a2 {[%clk 0:00:11]} 38. c7 {[%clk 0:01:37]}  a1=Q {[%clk 0:00:11]} 39. c8=Q+ {[%clk 0:01:38]}  Kh7 {[%clk 0:00:11]} 40. Qxf5+ {[%clk 0:01:39]}  Kg8 {[%clk 0:00:11]} 41. c5 {[%clk 0:01:34]}  g6 {[%clk 0:00:11]} 42. Qd5 {[%clk 0:01:33]}  Qc1 {[%clk 0:00:09]} 43. Qd6 {[%clk 0:01:32]}  Kg7 {[%clk 0:00:03]} 44. c6 {[%clk 0:01:31]}  Qc4 {[%clk 0:00:01]} 45. c7 {[%clk 0:01:30]}  Qc1 {[%clk 0:00:02]} 46. Qd4+ {[%clk 0:01:22]}  Kh7 {[%clk 0:00:01]} 47. Qe5 {[%clk 0:01:21]} 1-0


[Site "https://www.chess.com"]

[Event "Titled Tuesday Blitz August 23 Late 2022"]
[White "Korchmar, Vasiliy"]
[Black "Hansen, Eric"]
[WhiteFideId "24131750"]
[BlackFideId "2606771"]
[WhiteElo "2370"]
[BlackElo "2568"]
[Result "1-0"]
[Round "10"]
[TimeControl "180+1"]
[Date "2022.08.23"]
[WhiteClock "0:00:18"]
[BlackClock "0:00:04"]

1. e4 {[%clk 0:03:00]}  c5 {[%clk 0:02:58]} 2. Nf3 {[%clk 0:02:59]}  e6 {[%clk 0:02:57]} 3. g3 {[%clk 0:02:58]}  Nc6 {[%clk 0:02:57]} 4. Bg2 {[%clk 0:02:58]}  d6 {[%clk 0:02:58]} 5. O-O {[%clk 0:02:57]}  Be7 {[%clk 0:02:58]} 6. c3 {[%clk 0:02:57]}  Nf6 {[%clk 0:02:59]} 7. Re1 {[%clk 0:02:57]}  e5 {[%clk 0:02:44]} 8. d4 {[%clk 0:02:53]}  cxd4 {[%clk 0:02:44]} 9. cxd4 {[%clk 0:02:53]}  Bg4 {[%clk 0:02:45]} 10. d5 {[%clk 0:02:44]}  Nd4 {[%clk 0:02:45]} 11. Nbd2 {[%clk 0:02:30]}  Rc8 {[%clk 0:02:42]} 12. Rb1 {[%clk 0:02:15]}  Nc2 {[%clk 0:02:25]} 13. Rf1 {[%clk 0:02:13]}  Qa5 {[%clk 0:02:22]} 14. b3 {[%clk 0:02:01]}  Nd4 {[%clk 0:01:53]} 15. Bb2 {[%clk 0:01:53]}  Nxf3+ {[%clk 0:01:27]} 16. Bxf3 {[%clk 0:01:53]}  h5 {[%clk 0:01:26]} 17. Nc4 {[%clk 0:01:46]}  Qa6 {[%clk 0:01:24]} 18. a4 {[%clk 0:01:38]}  O-O {[%clk 0:01:22]} 19. Kg2 {[%clk 0:01:35]}  b5 {[%clk 0:01:22]} 20. axb5 {[%clk 0:01:33]}  Qxb5 {[%clk 0:01:22]} 21. h3 {[%clk 0:01:34]}  Bd7 {[%clk 0:01:18]} 22. Ba3 {[%clk 0:01:27]}  Qb8 {[%clk 0:01:14]} 23. Nxe5 {[%clk 0:01:20]}  Bb5 {[%clk 0:01:10]} 24. Re1 {[%clk 0:01:13]}  Rfe8 {[%clk 0:01:05]} 25. Nc6 {[%clk 0:01:10]}  Bxc6 {[%clk 0:00:47]} 26. dxc6 {[%clk 0:01:11]}  Bf8 {[%clk 0:00:48]} 27. Rc1 {[%clk 0:01:01]}  Qb5 {[%clk 0:00:34]} 28. Bb2 {[%clk 0:00:58]}  Re5 {[%clk 0:00:20]} 29. Bxe5 {[%clk 0:00:57]}  dxe5 {[%clk 0:00:21]} 30. Qc2 {[%clk 0:00:42]}  h4 {[%clk 0:00:18]} 31. g4 {[%clk 0:00:41]}  Nh7 {[%clk 0:00:12]} 32. Qc4 {[%clk 0:00:39]}  Qb6 {[%clk 0:00:10]} 33. Red1 {[%clk 0:00:38]}  Ng5 {[%clk 0:00:10]} 34. Rd7 {[%clk 0:00:39]}  a5 {[%clk 0:00:05]} 35. c7 {[%clk 0:00:39]}  Qf6 {[%clk 0:00:04]} 36. Rc3 {[%clk 0:00:39]}  Ne6 {[%clk 0:00:05]} 37. Kh2 {[%clk 0:00:30]}  Qf4+ {[%clk 0:00:05]} 38. Kg1 {[%clk 0:00:29]}  Qf6 {[%clk 0:00:04]} 39. Qa6 {[%clk 0:00:26]}  Rxc7 {[%clk 0:00:03]} 40. Rcxc7 {[%clk 0:00:20]}  Qxf3 {[%clk 0:00:01]} 41. Rxf7 {[%clk 0:00:20]}  Qd1+ {[%clk 0:00:01]} 42. Kg2 {[%clk 0:00:18]}  Nf4+ {[%clk 0:00:02]} 43. Rxf4 {[%clk 0:00:18]}  exf4 {[%clk 0:00:03]} 44. Qc4+ {[%clk 0:00:18]}  Kh8 {[%clk 0:00:03]} 45. Qf7 {[%clk 0:00:18]}  f3+ {[%clk 0:00:03]} 46. Qxf3 {[%clk 0:00:18]}  Bd6 {[%clk 0:00:04]} 47. Qxd1 {[%clk 0:00:18]} 1-0


[Site "https://www.chess.com"]